[Event "Nacional Masters POR 2017-18"]
[Site "Cascais"]
[Date "2018.08.13"]
[Round "4"]
[White "Horta, Antonio Mauricio Ri"]
[Black "Lavrador, Rodolfo M Mascarenh"]
[Result "1/2-1/2"]
[ECO "A40"]
[WhiteElo "1950"]
[BlackElo "1859"]
[Annotator "NA RC"]
[PlyCount "112"]
[EventDate "2018.08.11"]
[EventType "tourn"]
[EventCountry "POR"]
[SourceTitle "playchess.com"]
[Source "ChessBase"]
[SourceQuality "1"]
[TimeControl "5400+30"]

1. d4 {[%emt 0:00:00]} e6 {[%emt 0:00:16]} 2. Nf3 {[%emt 0:00:13]} d5 {[%emt 0:01:53]} 3. g3 {[%emt 0:00:08]} Nf6 {[%emt 0:00:32]} 4. Bg2 {[%emt 0:00:07]} Be7 {[%emt 0:00:17]} 5. O-O {[%emt 0:00:10]} O-O {[%emt 0:00:11]} 6. c4 {[%emt 0:00:17]} c6 {[%emt 0:00:38]} 7. Nc3 {[%emt 0:00:42]} Nbd7 {[%emt 0:01:04]} 8. Bf4 {[%emt 0:01:38]} Re8 {[%emt 0:03:59] E07: Closed Catalan: Main Line (5 Nf3 0-0 6 0-0 Nbd7)} (8... b6 9. cxd5 exd5 10. Rc1 Bb7 11. Qc2 Re8 12. Rfd1 Nf8 13. e4 dxe4 14. Ne5 Nd5 15. Nxe4 Ne6 16. Be3 Rc8 17. Qb3 Bf8 18. Nc3 Nxe3 19. fxe3 Rc7 20. Kh1 {1-0 (54) Dominguez Perez,L (2739)-Caruana,F (2807) Saint Louis 2017}) 9. Qd3 {[%emt 0:17:05]} Nf8 {[%emt 0:05:17]} 10. e4 $146 {[%emt 0:02:28]} ({Predecessor:} 10. Rad1 Ng6 11. Bc1 Qc7 12. h4 Bb4 13. a3 Bxc3 14. Qxc3 Ne4 15. Qc2 f5 16. h5 Nf8 {1-0 (38) Mirzaev,A (2271)-Parshakov,V (1918) Uljanovsk 2014}) 10... dxe4 {[%emt 0:06:52]} 11. Nxe4 {[%emt 0:00:15]} Ng6 $1 {[%emt 0:00:23]} 12. Be3 {[%emt 0:07:00]} e5 {[%emt 0:03:18]} 13. Rad1 {[%emt 0:26:58]} Nxe4 {[%emt 0:08:16]} 14. Qxe4 {[%emt 0:00:08]} f5 {[%emt 0:03:09]} 15. Qc2 {[%emt 0:01:05]} e4 $1 {[%emt 0:01:04]} 16. Ne5 {[%emt 0:00:05]} Nxe5 {[%emt 0:00:48]} 17. dxe5 {[%emt 0:00:02]} Qa5 {[%emt 0:00:35]} 18. Bd4 {[%emt 0:05:05]} Be6 {[%emt 0:04:54]} 19. b3 {[%emt 0:04:25]} Rad8 {[%emt 0:01:46]} 20. Kh1 {[%emt 0:03:06]} Bc5 {[%emt 0:08:19]} 21. Bc3 {[%emt 0:00:59]} Qb6 {[%emt 0:06:04]} 22. g4 {[%emt 0:07:58]} Rxd1 {[%emt 0:05:43]} 23. Rxd1 {[%emt 0:00:27]} Bxf2 {[%emt 0:01:43]} 24. gxf5 {[%emt 0:00:14]} Bxf5 {[%emt 0:26:33]} 25. Bxe4 {[%emt 0:00:18]} Bxe4+ {[%emt 0:01:16]} 26. Qxe4 {[%emt 0:00:01]} Qe3 {[%emt 0:02:15]} 27. Qxe3 {[%emt 0:01:31]} Bxe3 {[%emt 0:00:10]} 28. Rd7 {[%emt 0:00:05]} b5 {[%emt 0:01:32]} 29. Rc7 {[%emt 0:08:12]} Re6 {[%emt 0:00:22]} 30. Kg2 {[%emt 0:01:19]} bxc4 {[%emt 0:00:15]} 31. bxc4 {[%emt 0:00:08]} Bb6 {[%emt 0:01:13]} (31... Bf4 $11 {keeps the balance.}) 32. Rd7 {[%emt 0:00:26]} Kf8 {[%emt 0:00:30]} 33. Kf3 {[%emt 0:00:13]} c5 {[%emt 0:01:16]} 34. Ke4 {[%emt 0:00:28]} Re7 {[%emt 0:00:19]} 35. Rxe7 {[%emt 0:00:58]} Kxe7 {[%emt 0:00:07]} 36. Kd5 {[%emt 0:00:02]} g5 {[%emt 0:00:26]} 37. a4 {[%emt 0:00:10]} h5 {[%emt 0:01:09]} 38. a5 {[%emt 0:00:37]} Bc7 {[%emt 0:00:15]} 39. Kxc5 {[%emt 0:00:03]} Ke6 {[%emt 0:00:32]} 40. Kc6 {[%emt 0:00:47]} Bxe5 {[%emt 0:00:35]} 41. Bxe5 {[%emt 0:00:20]} Kxe5 42. c5 g4 {[%emt 0:00:54]} 43. Kd7 {[%emt 0:00:40]} h4 {[%emt 0:00:10]} 44. c6 {[%emt 0:00:04]} g3 {[%emt 0:00:11]} 45. hxg3 {[%emt 0:00:14]} hxg3 {[%emt 0:00:15]} 46. c7 {[%emt 0:00:02]} g2 {[%emt 0:00:15]} 47. c8=Q g1=Q {[%emt 0:00:35]} 48. Qc3+ {[%emt 0:01:24]} Kd5 {[%emt 0:01:42]} 49. Qc6+ {[%emt 0:01:01]} Ke5 {[%emt 0:00:41]} 50. Qd6+ {[%emt 0:00:46]} Ke4 {[%emt 0:00:29]} 51. Kc7 {[%emt 0:01:36]} Qg7+ $2 {[%emt 0:02:22]} (51... Qd4 $11) 52. Kb8 {[%emt 0:01:05]} Qf7 {[%emt 0:00:55]} 53. Qc7 {[%emt 0:00:18]} Qxc7+ {[%emt 0:00:37]} 54. Kxc7 {[%emt 0:00:06]} Kd5 {[%emt 0:00:02]} 55. a6 $11 {[%emt 0:00:22]} Kc5 {[%emt 0:00:11]} 56. Kb7 {[%emt 0:00:02]} Kd6 1/2-1/2

[Event "Nacional Masters POR 2017-18"]
[Site "Cascais"]
[Date "2018.08.14"]
[Round "5"]
[White "Martins, David Pires Tavares"]
[Black "Margarido, Jose Miguel Teixeir"]
[Result "1/2-1/2"]
[ECO "A00"]
[WhiteElo "2397"]
[BlackElo "2081"]
[Annotator "NA"]
[PlyCount "92"]
[EventDate "2018.08.11"]
[EventType "tourn"]
[EventCountry "POR"]
[SourceTitle "playchess.com"]
[Source "ChessBase"]
[SourceQuality "1"]
[TimeControl "5400+30"]

1. g3 {[%emt 0:00:00]} Nf6 {[%emt 0:00:01]} 2. Bg2 {[%emt 0:00:03]} d5 {[%emt 0:00:34]} 3. f4 {[%emt 0:00:08]} g6 {[%emt 0:00:38]} 4. Nf3 {[%emt 0:02:37]} Bg7 {[%emt 0:00:05]} 5. O-O {[%emt 0:00:08]} O-O {[%emt 0:00:07]} 6. d3 {[%emt 0:00:05]} c5 {[%emt 0:02:35]} 7. c3 {[%emt 0:00:28]} Nc6 {[%emt 0:00:47]} 8. Na3 {[%emt 0:00:08]} b6 {[%emt 0:01:20]} 9. Qe1 {[%emt 0:01:58]} Ba6 {[%emt 0:03:20]} 10. h3 {[%emt 0:01:22]} Rc8 {[%emt 0:01:38]} 11. Rb1 {[%emt 0:01:08]} e6 {[%emt 0:12:09]} 12. Nc2 {[%emt 0:01:55]} c4 {[%emt 0:05:48]} 13. d4 {[%emt 0:04:56]} Ne4 {[%emt 0:00:52]} 14. Ng5 {[%emt 0:00:15]} Nxg5 {[%emt 0:00:39]} 15. fxg5 {[%emt 0:00:06]} e5 {[%emt 0:11:05]} 16. dxe5 {[%emt 0:00:50]} d4 {[%emt 0:00:27]} 17. Bxc6 {[%emt 0:01:51]} Rxc6 {[%emt 0:00:52]} 18. Nxd4 {[%emt 0:00:26]} Rc5 {[%emt 0:07:20]} 19. Bf4 {[%emt 0:01:09]} Bb7 {[%emt 0:01:50]} 20. Rd1 {[%emt 0:01:03]} Qe7 {[%emt 0:05:47]} 21. Nf3 {[%emt 0:00:51]} Bxf3 {[%emt 0:01:04]} 22. exf3 {[%emt 0:02:28]} Bxe5 {[%emt 0:01:35]} 23. Be3 {[%emt 0:01:21]} Bxg3 {[%emt 0:02:50]} 24. Qxg3 {[%emt 0:07:38]} Qxe3+ {[%emt 0:00:08]} 25. Kh1 {[%emt 0:00:08]} Rxg5 {[%emt 0:02:18]} 26. Qf2 {[%emt 0:00:08]} Qe6 {[%emt 0:02:01]} 27. Kh2 {[%emt 0:00:17]} Re5 {[%emt 0:01:35]} 28. Rfe1 $17 {[%emt 0:01:04]} Re8 {[%emt 0:01:09]} 29. Rxe5 {[%emt 0:00:38]} Qxe5+ {[%emt 0:00:01]} 30. Kg2 {[%emt 0:00:48]} Qg5+ {[%emt 0:01:38]} 31. Kh1 {[%emt 0:03:55]} Re3 {[%emt 0:09:16]} 32. Re1 {[%emt 0:00:16]} Rd3 {[%emt 0:03:03]} 33. Re2 {[%emt 0:02:22]} h5 {[%emt 0:03:23]} 34. h4 {[%emt 0:00:40]} Qd5 {[%emt 0:05:03]} 35. Kg2 {[%emt 0:00:14]} Kg7 {[%emt 0:00:29]} 36. Qg3 {[%emt 0:02:26]} a5 {[%emt 0:02:29]} 37. Qf4 {[%emt 0:00:28]} b5 {[%emt 0:06:11]} 38. a3 {[%emt 0:03:33]} Qd6 {[%emt 0:01:58]} 39. Kg3 {[%emt 0:02:05]} Qxf4+ {[%emt 0:01:45]} 40. Kxf4 {[%emt 0:00:09]} Kf6 {[%emt 0:00:24]} 41. Ke4 {[%emt 0:00:51]} Rd1 {[%emt 0:01:02]} 42. Kf4 {[%emt 0:00:59]} Rd5 {[%emt 0:01:15]} 43. Rg2 {[%emt 0:02:08]} Ke6 {[%emt 0:00:39]} 44. Re2+ {[%emt 0:00:10]} Kf6 {[%emt 0:01:42]} 45. Rg2 {[%emt 0:00:05]} Ke6 {[%emt 0:00:58]} 46. Re2+ {[%emt 0:00:04]} Kf6 {[%emt 0:00:29]} 1/2-1/2

[Event "Nacional Masters POR 2017-18"]
[Site "Cascais"]
[Date "2018.08.14"]
[Round "5"]
[White "Santos, Antonio Pereira"]
[Black "Dias, Paulo Jorge Guimara"]
[Result "0-1"]
[ECO "A73"]
[WhiteElo "2194"]
[BlackElo "2328"]
[Annotator "NA"]
[PlyCount "56"]
[EventDate "2018.08.11"]
[EventType "tourn"]
[EventCountry "POR"]
[SourceTitle "playchess.com"]
[Source "ChessBase"]
[SourceQuality "1"]
[TimeControl "5400+30"]

1. d4 {[%emt 0:11:23]} e6 {[%emt 0:00:00]} 2. Nf3 {[%emt 0:00:23]} Nf6 {[%emt 0:05:10]} 3. c4 {[%emt 0:00:24]} c5 {[%emt 0:01:31]} 4. d5 {[%emt 0:00:14]} exd5 {[%emt 0:00:42]} 5. cxd5 {[%emt 0:00:03]} d6 {[%emt 0:00:18]} 6. Nc3 {[%emt 0:00:08]} g6 {[%emt 0:00:47]} 7. e4 {[%emt 0:00:12]} Bg7 {[%emt 0:00:09]} 8. Be2 {[%emt 0:00:12]} O-O {[%emt 0:00:44]} 9. O-O {[%emt 0:00:07]} Qe7 {[%emt 0:02:49]} 10. Nd2 {[%emt 0:02:02]} Na6 {[%emt 0:01:25]} 11. f3 {[%emt 0:14:02]} Nc7 {[%emt 0:02:35]} 12. a4 {[%emt 0:00:08]} b6 {[%emt 0:10:22]} 13. Nc4 {[%emt 0:16:01]} Nd7 {[%emt 0:06:31]} 14. Bf4 {[%emt 0:03:38]} Ne5 {[%emt 0:02:55]} 15. Bxe5 {[%emt 0:00:22]} Bxe5 {[%emt 0:00:15]} 16. Nxe5 {[%emt 0:00:07]} Qxe5 {[%emt 0:00:11]} 17. f4 {[%emt 0:29:02]} Qg7 {[%emt 0:24:37]} 18. e5 {[%emt 0:13:13]} dxe5 {[%emt 0:03:01]} 19. d6 {[%emt 0:00:03]} Ne6 {[%emt 0:00:17]} 20. Qd5 {[%emt 0:01:12]} Rb8 {[%emt 0:03:39]} 21. Qxe5 {[%emt 0:00:52]} Nd4 {[%emt 0:07:09]} 22. Bc4 {[%emt 0:00:34]} Be6 $11 {[%emt 0:02:59]} 23. Bd5 {[%emt 0:06:00]} Rfe8 {[%emt 0:05:03]} 24. Ne4 {[%emt 0:00:02]} Qxe5 {[%emt 0:02:11]} 25. fxe5 {[%emt 0:00:01]} Bxd5 {[%emt 0:00:14]} 26. Nf6+ {[%emt 0:00:03]} Kg7 {[%emt 0:00:45]} 27. Nxd5 {[%emt 0:00:37]} Rxe5 {[%emt 0:00:10]} 28. Nf6 {[%emt 0:00:10]} Re6 {[%emt 0:01:33]} 0-1

[Event "Nacional Masters POR 2017-18"]
[Site "Cascais"]
[Date "2018.08.14"]
[Round "5"]
[White "Dias, Ivo Rodrigues"]
[Black "Martins, Bruno Andre Leite"]
[Result "1/2-1/2"]
[ECO "B32"]
[WhiteElo "2164"]
[BlackElo "2158"]
[Annotator "NA"]
[PlyCount "29"]
[EventDate "2018.08.11"]
[EventType "tourn"]
[EventCountry "POR"]
[SourceTitle "playchess.com"]
[Source "ChessBase"]
[SourceQuality "1"]
[TimeControl "5400+30"]

1. e4 {[%emt 0:00:00]} c5 {[%emt 0:00:00]} 2. Nf3 {[%emt 0:00:00]} Nc6 {[%emt 0:00:06]} 3. d4 {[%emt 0:00:00]} cxd4 {[%emt 0:00:07]} 4. Nxd4 {[%emt 0:00:00]} e5 {[%emt 0:00:10]} 5. Nb5 {[%emt 0:00:04]} a6 {[%emt 0:00:12]} 6. Nd6+ {[%emt 0:00:12]} Bxd6 {[%emt 0:00:07]} 7. Qxd6 {[%emt 0:00:05]} Qf6 {[%emt 0:00:14]} 8. Qd2 {[%emt 0:00:59]} Nge7 {[%emt 0:00:16]} 9. c4 {[%emt 0:06:05]} Nd4 {[%emt 0:06:42]} 10. Nc3 {[%emt 0:00:38]} O-O {[%emt 0:07:19]} 11. Bd3 {[%emt 0:07:59]} Qg6 {[%emt 0:10:36]} 12. f3 {[%emt 0:09:34]} d6 {[%emt 0:09:20]} 13. O-O {[%emt 0:08:29]} f5 {[%emt 0:09:28]} 14. Qg5 {[%emt 0:13:23]} Nec6 {[%emt 0:18:32]} 15. Nd5 {[%emt 0:17:17]} 1/2-1/2

[Event "Nacional Masters POR 2017-18"]
[Site "Cascais"]
[Date "2018.08.14"]
[Round "5"]
[White "Guerra, Vitor Manuel Vestia"]
[Black "Padeiro, Jose Joao Tato"]
[Result "0-1"]
[ECO "A46"]
[WhiteElo "2127"]
[BlackElo "2241"]
[Annotator "NA"]
[PlyCount "56"]
[EventDate "2018.08.11"]
[EventType "tourn"]
[EventCountry "POR"]
[SourceTitle "playchess.com"]
[Source "ChessBase"]
[SourceQuality "1"]
[TimeControl "5400+30"]

1. d4 {[%emt 0:00:00]} Nf6 {[%emt 0:00:00]} 2. Nf3 {[%emt 0:00:07]} e6 {[%emt 0:00:00]} 3. g3 {[%emt 0:01:28]} d5 {[%emt 0:00:20]} 4. Bg2 {[%emt 0:00:39]} Be7 {[%emt 0:00:06]} 5. O-O {[%emt 0:00:26]} O-O {[%emt 0:00:05]} 6. c4 {[%emt 0:00:36]} c6 {[%emt 0:00:10]} 7. Nc3 {[%emt 0:00:52]} b6 {[%emt 0:00:15]} 8. b3 {[%emt 0:01:25]} Bb7 {[%emt 0:01:03]} 9. cxd5 {[%emt 0:01:12]} cxd5 {[%emt 0:01:02]} 10. Bf4 {[%emt 0:01:13]} Nc6 {[%emt 0:01:51]} 11. Rc1 {[%emt 0:01:37]} Rc8 {[%emt 0:04:55]} 12. Na4 {[%emt 0:12:11]} Ne4 {[%emt 0:05:30]} 13. Ne5 {[%emt 0:01:33]} Nb4 {[%emt 0:16:45]} 14. f3 {[%emt 0:04:58]} Nd6 {[%emt 0:01:28]} 15. Rxc8 {[%emt 0:03:53]} Qxc8 {[%emt 0:01:27]} 16. Qd2 {[%emt 0:00:04]} Nb5 {[%emt 0:08:22]} 17. Rc1 {[%emt 0:00:56]} Qa8 {[%emt 0:00:50]} 18. Qb2 {[%emt 0:10:49]} f6 {[%emt 0:04:20]} 19. Nd7 {[%emt 0:19:03]} Rd8 {[%emt 0:01:06]} 20. Bh3 {[%emt 0:00:07]} Kf7 {[%emt 0:00:32]} 21. Nac5 {[%emt 0:08:45]} bxc5 {[%emt 0:01:10]} 22. Nxc5 {[%emt 0:00:50]} f5 {[%emt 0:05:55]} 23. Nxe6 {[%emt 0:03:09]} Kxe6 {[%emt 0:00:26]} 24. Bxf5+ {[%emt 0:00:05]} Kxf5 {[%emt 0:05:07]} 25. Qb1+ {[%emt 0:00:06]} Ke6 {[%emt 0:00:09]} 26. Qxh7 {[%emt 0:00:21]} Bf6 {[%emt 0:04:42]} 27. a4 {[%emt 0:08:20]} Rc8 {[%emt 0:05:28]} 28. Qh3+ {[%emt 0:01:49] Ke5} Ke7 {[%emt 0:00:23]} 0-1

[Event "Nacional Masters POR 2017-18"]
[Site "Cascais"]
[Date "2018.08.14"]
[Round "5"]
[White "Santos, Jose Alves"]
[Black "Fidalgo, Andre Neves"]
[Result "1/2-1/2"]
[ECO "B22"]
[WhiteElo "2118"]
[BlackElo "2187"]
[Annotator "NA"]
[PlyCount "87"]
[EventDate "2018.08.11"]
[EventType "tourn"]
[EventCountry "POR"]
[SourceTitle "playchess.com"]
[Source "ChessBase"]
[SourceQuality "1"]
[TimeControl "5400+30"]

1. e4 {[%emt 0:00:00]} c5 {[%emt 0:00:00]} 2. c3 {[%emt 0:00:00]} Nf6 {[%emt 0:00:00]} 3. e5 {[%emt 0:00:04]} Nd5 {[%emt 0:00:00]} 4. d4 {[%emt 0:00:14]} cxd4 {[%emt 0:00:00]} 5. cxd4 {[%emt 0:00:13]} e6 {[%emt 0:00:08]} 6. Nf3 {[%emt 0:01:06]} d6 {[%emt 0:00:54]} 7. Bc4 {[%emt 0:00:55]} Nb6 {[%emt 0:00:11]} 8. Bb3 {[%emt 0:01:44]} dxe5 {[%emt 0:00:22]} 9. Nxe5 {[%emt 0:00:40]} N8d7 {[%emt 0:03:47]} 10. O-O {[%emt 0:15:38]} Nxe5 {[%emt 0:07:58]} 11. dxe5 {[%emt 0:03:04]} Qxd1 {[%emt 0:00:16]} 12. Rxd1 {[%emt 0:00:02]} Bd7 {[%emt 0:00:19]} 13. Be3 {[%emt 0:04:31]} Bc6 {[%emt 0:03:56]} 14. Nc3 {[%emt 0:02:15]} Be7 {[%emt 0:02:08]} 15. a4 {[%emt 0:06:07]} O-O {[%emt 0:04:34]} 16. f4 {[%emt 0:03:56]} Nd7 {[%emt 0:06:28]} 17. a5 {[%emt 0:13:40]} Rfc8 {[%emt 0:11:07]} 18. Ne4 {[%emt 0:00:14]} Nxe5 {[%emt 0:01:31]} 19. Nd6 {[%emt 0:02:15]} Bxd6 {[%emt 0:03:00]} 20. Rxd6 {[%emt 0:00:03]} Ng4 {[%emt 0:01:15]} 21. Bd4 {[%emt 0:03:03]} Rd8 {[%emt 0:01:23]} 22. Rxd8+ {[%emt 0:08:45]} Rxd8 {[%emt 0:00:08]} 23. Rd1 {[%emt 0:00:26]} a6 {[%emt 0:00:25]} 24. h3 {[%emt 0:00:23]} Nf6 {[%emt 0:01:51]} 25. Kf2 {[%emt 0:07:51]} Ne4+ {[%emt 0:04:30]} 26. Ke3 {[%emt 0:00:01]} Ng3 {[%emt 0:00:47]} 27. Bb6 {[%emt 0:00:21]} Rxd1 {[%emt 0:02:36]} 28. Bxd1 {[%emt 0:00:01]} Kf8 {[%emt 0:12:47]} 29. Bc2 {[%emt 0:04:23]} f5 {[%emt 0:08:43]} 30. Kf2 {[%emt 0:08:09]} Nh5 {[%emt 0:00:06]} 31. g3 {[%emt 0:04:00]} Ke7 {[%emt 0:05:20]} 32. Bc5+ {[%emt 0:03:30]} Kf7 {[%emt 0:01:01]} 33. Bd6 {[%emt 0:00:25]} Nf6 {[%emt 0:01:40]} 34. Ke3 {[%emt 0:02:16]} h6 {[%emt 0:00:19]} 35. Bd3 {[%emt 0:00:28]} g5 {[%emt 0:00:47]} 36. Be2 {[%emt 0:00:37]} Ne4 {[%emt 0:02:47]} 37. Be5 {[%emt 0:05:22]} Nf6 {[%emt 0:05:33]} 38. Bxf6 {[%emt 0:01:32]} Kxf6 {[%emt 0:00:06]} 39. Kd4 {[%emt 0:00:01]} Be4 {[%emt 0:01:06]} 40. b4 {[%emt 0:00:10]} Bd5 {[%emt 0:00:30]} 41. Bd1 {[%emt 0:01:08]} Bc6 {[%emt 0:01:41]} 42. Be2 {[%emt 0:00:01]} Bd5 {[%emt 0:04:38]} 43. Bd1 {[%emt 0:00:02]} Bc6 {[%emt 0:02:50]} 44. Be2 {[%emt 0:00:01] Ke5+ Ke4+} 1/2-1/2

[Event "Nacional Masters POR 2017-18"]
[Site "Cascais"]
[Date "2018.08.15"]
[Round "6"]
[White "Dias, Paulo"]
[Black "Margarido, Jose Miguel Teixeir"]
[Result "0-1"]
[ECO "A45"]
[WhiteElo "2328"]
[BlackElo "2081"]
[Annotator "NA"]
[PlyCount "110"]
[EventDate "2018.08.11"]
[EventType "tourn"]
[EventCountry "POR"]
[SourceTitle "playchess.com"]
[Source "ChessBase"]
[SourceQuality "1"]
[TimeControl "5400+30"]

1. d4 {[%emt 0:07:07]} Nf6 {[%emt 0:00:00]} 2. g3 {[%emt 0:01:03]} d5 {[%emt 0:02:22]} 3. Bg2 {[%emt 0:00:51]} e6 {[%emt 0:00:29]} 4. Nf3 {[%emt 0:01:40]} b5 {[%emt 0:00:48]} 5. a4 {[%emt 0:04:19] A46: 1 d4 Nf6 2 Nf3 e6: Torre, London and Colle Systems} (5. O-O Be7 6. Nbd2 O-O 7. Ne5 Bb7 8. Nb3 a5 9. a4 b4 10. c4 bxc3 {½-½ (10) Hera,I (2620)-Piorun,K (2633) Brest 2018}) 5... b4 {[%emt 0:00:39]} 6. c4 {[%emt 0:06:07]} bxc3 {[%emt 0:01:26]} 7. bxc3 {[%emt 0:01:47]} Ba6 {[%emt 0:03:45]} 8. O-O {[%emt 0:01:50]} Be7 {[%emt 0:02:00]} 9. Ne5 {[%emt 0:04:24] LiveBook: 8 Games} O-O {[%emt 0:11:43]} 10. c4 {[%emt 0:04:56]} c6 {[%emt 0:00:28]} 11. Nd2 {[%emt 0:12:11]} Nfd7 $146 {[%emt 0:04:39]} ({Predecessor:} 11... Nbd7 12. Nxd7 {½-½ (12) Marholev,D (2284)-Balokas,D (2128) Kecskemet 2015}) 12. Bb2 {[%emt 0:01:08]} Nxe5 {[%emt 0:01:55]} 13. dxe5 {[%emt 0:00:02]} Nd7 {[%emt 0:01:37]} 14. Qc2 {[%emt 0:01:09]} Nb6 {[%emt 0:05:32]} 15. c5 {[%emt 0:10:28]} Nd7 {[%emt 0:08:08]} 16. Rfe1 {[%emt 0:04:56]} Qc7 {[%emt 0:05:23]} 17. e4 {[%emt 0:04:07]} Nxc5 {[%emt 0:08:32]} 18. exd5 {[%emt 0:10:08]} cxd5 {[%emt 0:02:00]} 19. Ba3 {[%emt 0:02:23]} Rfc8 {[%emt 0:01:19]} 20. Rac1 {[%emt 0:02:14]} Qd7 {[%emt 0:01:31]} 21. Bxc5 {[%emt 0:04:46]} Bxc5 {[%emt 0:00:54]} 22. Qa2 {[%emt 0:02:37]} h6 {[%emt 0:09:19]} 23. Bf1 {[%emt 0:01:13]} Bxf1 {[%emt 0:00:55]} 24. Nxf1 {[%emt 0:00:15]} Rc6 {[%emt 0:01:49]} 25. Rb1 {[%emt 0:03:24]} Qc7 {[%emt 0:03:41]} 26. Nd2 {[%emt 0:00:32]} (26. Qd2 $142) 26... Bd4 {[%emt 0:01:33]} 27. Qb3 {[%emt 0:03:55]} Bxe5 {[%emt 0:05:24]} 28. Nf1 {[%emt 0:02:28]} Bd4 {[%emt 0:02:06]} 29. Ne3 {[%emt 0:00:56]} Bb6 {[%emt 0:01:38]} 30. Ng4 {[%emt 0:00:33]} Rc8 {[%emt 0:01:00]} 31. Re2 {[%emt 0:00:58]} Rc3 {[%emt 0:00:57]} 32. Qb5 {[%emt 0:00:31]} Qc4 {[%emt 0:02:08]} 33. Ne5 {[%emt 0:00:49]} Qc7 $2 {[%emt 0:02:51]} ({Black should try} 33... Qxb5 $19 34. axb5 Rc2) 34. Kg2 {[%emt 0:00:36]} Bd4 {[%emt 0:00:56]} 35. Nd3 {[%emt 0:00:32]} Qc4 {[%emt 0:03:23]} 36. Rd2 {[%emt 0:00:25]} Bb6 {[%emt 0:02:22]} 37. a5 {[%emt 0:00:34]} Bd4 {[%emt 0:01:57]} 38. Qd7 {[%emt 0:00:21]} Qc7 {[%emt 0:00:45]} ({Schwächer ist} 38... Rxd3 39. Rxd3 Qxd3 40. Qxc8+ Kh7 41. Rc1 $15) 39. Qa4 {[%emt 0:00:39]} Rc4 {[%emt 0:00:23]} 40. Qb5 {[%emt 0:00:35]} Bf6 {[%emt 0:00:46]} 41. a6 {[%emt 0:00:17]} Bd4 {[%emt 0:00:47]} 42. Re2 {[%emt 0:00:40]} Bb6 {[%emt 0:00:30]} 43. Rbe1 {[%emt 0:00:18]} (43. Qb2 {might work better.}) 43... Qc6 {[%emt 0:00:31]} 44. Qb1 {[%emt 0:00:14]} d4+ {[%emt 0:00:35]} 45. Kg1 {[%emt 0:00:15]} Rc3 {[%emt 0:00:23]} 46. Rd1 {[%emt 0:00:50]} Qc4 {[%emt 0:00:28]} 47. Re4 {[%emt 0:00:56]} Rb3 {[%emt 0:00:37]} 48. Nb2 {[%emt 0:00:30]} Qb5 {[%emt 0:00:29]} 49. Rd2 {[%emt 0:00:15]} Qxa6 {[%emt 0:00:23]} 50. Qd1 {[%emt 0:00:15]} Qb5 {[%emt 0:00:28]} 51. Qa1 $19 {[%emt 0:01:00]} d3 {[%emt 0:00:35]} 52. Kg2 {[%emt 0:00:30]} Qd5 {[%emt 0:00:29]} 53. f3 {[%emt 0:00:01]} Rc2 {[%emt 0:00:36]} 54. Rxc2 {[%emt 0:00:45]} dxc2 {[%emt 0:00:01]} 55. Qc1 {[%emt 0:00:41]} Rxb2 {[%emt 0:00:46]} 0-1

[Event "Nacional Masters POR 2017-18"]
[Site "Cascais"]
[Date "2018.08.15"]
[Round "6"]
[White "Padeiro, Jose Joao Tato"]
[Black "Dias, Ivo Rodrigues"]
[Result "1/2-1/2"]
[ECO "B23"]
[WhiteElo "2241"]
[BlackElo "2164"]
[Annotator "NA"]
[PlyCount "51"]
[EventDate "2018.08.11"]
[EventType "tourn"]
[EventCountry "POR"]
[SourceTitle "playchess.com"]
[Source "ChessBase"]
[SourceQuality "1"]
[TimeControl "5400+30"]

1. e4 {[%emt 0:00:00]} c5 {[%emt 0:01:30]} 2. Nc3 {[%emt 0:00:00]} a6 {[%emt 0:00:47]} 3. g3 {[%emt 0:00:28]} b5 {[%emt 0:00:06]} 4. Bg2 {[%emt 0:00:10]} Bb7 {[%emt 0:00:07]} 5. d3 {[%emt 0:01:55]} e6 {[%emt 0:00:16]} 6. Nh3 {[%emt 0:00:22]} Nf6 {[%emt 0:00:10] B23: Closed Sicilian: Lines without g3} (6... b4 7. Ne2 d5 8. e5 Nc6 9. f4 Nh6 10. Nf2 Nf5 11. O-O Qb6 12. c3 Be7 13. g4 Nh4 14. Bh1 {0-1 (35) Yu,Y (2738)-Khismatullin,D (2639) Moscow 2017}) 7. O-O {[%emt 0:00:30]} d6 {[%emt 0:00:30]} 8. f4 {[%emt 0:00:51]} Qc7 {[%emt 0:01:38]} 9. e5 $146 {[%emt 0:24:37]} ({Predecessor:} 9. g4 b4 10. Nb1 h5 11. g5 Ng4 12. g6 f6 13. f5 d5 14. Nf4 {1-0 (45) Moskalenko,V (2591)-Cordova,E (2567) Sabadell 2011}) 9... Bxg2 {[%emt 0:05:27]} 10. Kxg2 {[%emt 0:00:11]} Nfd7 {[%emt 0:06:59]} 11. f5 {[%emt 0:09:11]} Nxe5 {[%emt 0:05:25]} 12. fxe6 {[%emt 0:01:05]} fxe6 {[%emt 0:00:38]} 13. Nf4 {[%emt 0:08:21]} Qd7 {[%emt 0:02:04]} 14. Ne4 {[%emt 0:01:02]} Nbc6 {[%emt 0:05:24]} 15. Qh5+ {[%emt 0:08:11]} Qf7 {[%emt 0:06:19]} 16. Qxf7+ {[%emt 0:04:38]} Kxf7 {[%emt 0:01:24]} 17. Nd5+ {[%emt 0:00:53]} Kg8 {[%emt 0:11:37]} 18. Nc7 {[%emt 0:00:51]} Rc8 {[%emt 0:00:17]} 19. Nxe6 {[%emt 0:00:08]} Be7 {[%emt 0:00:06]} 20. Bf4 {[%emt 0:11:34]} h6 {[%emt 0:02:46]} 21. Bxe5 {[%emt 0:00:26]} Nxe5 {[%emt 0:02:57]} 22. Nf4 {[%emt 0:00:49]} Kf7 {[%emt 0:02:40]} 23. Nh5+ $11 {[%emt 0:08:14]} (23. a4 $16 b4 24. Rae1) 23... Kg6 {[%emt 0:00:37]} 24. Nf4+ {[%emt 0:00:04]} Kf7 {[%emt 0:00:05]} 25. Nh5+ {[%emt 0:01:30]} Kg6 {[%emt 0:00:12]} 26. Nf4+ {[%emt 0:00:04]} 1/2-1/2